bitfinex/quotes_ETHUSD_20240530
["timestamp","ask_amount","ask_price","bid_price","bid_amount"]
[1717099097943,2.6572,3763.4,3762.5,1.32213922]
[1717099103905,4.24135099,3764.0,3762.5,3.25513922]
[1717099103906,0.18135099,3764.0,3762.5,3.25513922]
[1717099104206,0.18135099,3764.0,3762.6,0.32551392]
[1717099104495,0.18135099,3764.0,3763.2,2.65728]
[1717099104783,0.18135099,3764.0,3763.3,1.32213922]
[1717099105291,0.18135099,3764.0,3763.4,2.65714]
[1717099105442,0.18135099,3764.0,3763.4,3.97927922]
[1717099105643,0.18135099,3764.0,3763.4,1.32213922]
[1717099106651,0.18135099,3764.0,3763.5,2.65706]
[1717099109072,0.18135099,3764.0,3763.4,1.32213922]
[1717099109465,2.65741,3763.1,3761.9,6.92857]
[1717099109676,0.265741,3763.0,3762.2,3.98013922]
[1717099109860,2.65741,3763.1,3762.2,3.98013922]
[1717099110597,4.8888,3763.9,3762.2,3.98013922]
[1717099110598,2.65713,3763.5,3762.5,2.65778]
[1717099110901,2.65713,3763.5,3762.6,1.32213922]
[1717099111099,6.99566,3763.9,3762.8,2.65757]
[1717099111300,3.0,3763.8,3762.9,1.32213922]
[1717099111882,2.65699,3763.7,3762.9,1.32213922]
[1717099117667,2.65699,3763.7,3762.9,1.77923933]
[1717099118776,2.65699,3763.7,3763.0,2.65745]
[1717099118975,0.18135099,3764.0,3763.0,3.97958922]
[1717099119572,0.18135099,3764.0,3763.2,2.65724]
[1717099119774,0.18135099,3764.0,3763.3,1.32213922]
[1717099125280,0.18135099,3764.0,3763.4,2.65715]
[1717099125486,0.18135099,3764.0,3763.4,3.97928922]
[1717099125674,0.18135099,3764.0,3763.5,1.32213922]
[1717099125880,0.18135099,3764.0,3763.6,2.65699]
[1717099126102,0.18135099,3764.0,3763.7,1.32213922]
[1717099128102,2.65617,3764.9,3763.8,4.2319]
[1717099128303,2.6559,3765.2,3764.1,4.5896]
[1717099128503,2.6559,3765.2,3764.3,2.65649]
[1717099128702,2.6559,3765.2,3764.3,3.97862922]
[1717099130079,2.92149,3765.2,3764.3,3.97862922]
[1717099133517,4.2103,3765.1,3763.3,4.1014]
[1717099133722,2.65632,3764.6,3763.5,2.65704]
[1717099134016,2.65654,3764.3,3763.5,3.97917922]
[1717099134338,2.65654,3764.3,3763.5,2.65704]
[1717099135005,0.640889,3765.0,3763.7,2.65693]
[1717099135006,2.65629,3764.7,3763.7,2.65693]
[1717099135219,2.65629,3764.7,3763.7,3.97906922]
[1717099135534,3.0,3765.3,3764.1,2.65663]
[1717099135535,2.65603,3765.1,3764.1,2.65663]
[1717099135740,2.65603,3765.1,3764.1,3.97876922]
[1717099136042,2.65603,3765.1,3764.2,1.32213922]
[1717099136344,2.65603,3765.1,3764.3,0.78731692]
[1717099136496,2.65603,3765.1,3764.3,1.32213922]
[1717099143544,2.65603,3765.1,3764.4,3.97858922]
[1717099143744,2.65573,3765.5,3764.4,3.97858922]
[1717099143911,2.65573,3765.5,3764.6,2.65625]
[1717099144250,2.65573,3765.5,3764.8,3.8692]
[1717099144425,2.65573,3765.5,3764.8,5.19133922]
[1717099144748,4.58799,3766.5,3764.9,3.97820922]
[1717099144749,2.65544,3765.9,3764.9,3.97820922]
[1717099147212,2.65512,3766.3,3764.9,3.97820922]
[1717099147923,2.762,3767.3,3765.3,2.65582]
[1717099147924,2.65484,3766.7,3765.3,2.65582]
[1717099148131,2.65484,3766.7,3765.5,2.65565]
[1717099148343,2.65484,3766.7,3765.5,3.97778922]
[1717099149570,2.65484,3766.7,3765.6,4.2058]
[1717099149918,2.65484,3766.7,3765.7,1.32213922]
[1717099150161,2.65484,3766.7,3765.8,0.81835892]
[1717099152067,2.65457,3767.1,3765.9,2.65539]
[1717099152238,2.65457,3767.1,3765.9,3.97752922]
[1717099153325,2.65457,3767.1,3766.0,0.05310337]
[1717099153539,2.65457,3767.1,3766.1,4.46223837]
[1717099153729,2.65424,3767.6,3766.4,2.65499]
[1717099153913,3.0,3767.5,3766.5,1.32213922]
[1717099154352,2.65439,3767.4,3766.5,1.32213922]
[1717099154852,0.16865883,3767.9,3766.6,2.65491]
[1717099154853,2.65407,3767.8,3766.6,2.65491]
[1717099155053,2.65407,3767.8,3766.5,2.11470214]
[1717099155054,2.65407,3767.8,3766.8,2.65474]
[1717099155215,2.65407,3767.8,3766.9,1.32213922]
[1717099156018,2.65407,3767.8,3766.5,0.79256292]
[1717099156226,2.65433,3767.5,3766.5,1.32213922]
[1717099156678,2.65433,3767.5,3766.4,2.65504]
[1717099157019,2.65433,3767.5,3766.4,3.97717922]
[1717099157356,2.65433,3767.5,3766.4,1.32213922]
[1717099157527,2.65452,3767.2,3766.4,1.32213922]
[1717099158541,2.65452,3767.2,3765.2,6.66856]
[1717099158542,1.32213922,3767.1,3765.2,6.66856]
[1717099158742,2.65522,3766.2,3765.2,6.66856]
[1717099158959,2.65495,3766.6,3765.4,2.65573]
[1717099159116,2.65518,3766.3,3765.4,3.97786922]
[1717099159318,2.65518,3766.3,3765.4,1.32213922]
[1717099159515,2.65536,3766.0,3765.2,4.0127]
[1717099162322,2.65536,3766.0,3765.3,3.97793922]
[1717099163422,2.6551,3766.4,3765.3,3.97793922]
[1717099164593,2.65528,3766.1,3765.3,3.97793922]
[1717099164753,2.65528,3766.1,3765.3,1.32213922]
[1717099169069,2.65528,3766.1,3765.2,4.0127]
[1717099169276,2.65528,3766.1,3765.2,5.73610922]
[1717099171477,2.65528,3766.1,3765.3,3.97793922]
[1717099171987,3.0,3767.2,3765.3,3.97793922]
[1717099171988,2.655,3766.5,3765.6,2.6556]
[1717099172205,2.65468,3767.0,3765.8,2.65545]
[1717099172512,2.65468,3767.0,3765.9,6.04470863]
[1717099173376,2.65488,3766.7,3765.9,4.72256941]
[1717099173579,2.65488,3766.7,3765.4,6.65972]
[1717099173804,2.65488,3766.7,3765.5,1.32213922]
[1717099174048,2.65508,3766.4,3765.5,1.32213922]
[1717099174371,2.65508,3766.4,3765.4,6.65972]
[1717099174550,2.65508,3766.4,3765.4,8.68795822]
[1717099175120,2.65508,3766.4,3765.5,1.32213922]
[1717099175321,2.6548,3766.8,3765.6,2.65558]
[1717099175543,2.6548,3766.8,3765.8,2.65543]
[1717099175767,2.6548,3766.8,3765.9,1.32213922]
[1717099175935,2.6548,3766.8,3766.0,0.39775692]
[1717099176842,2.65504,3766.5,3765.4,7.365819]
[1717099177029,2.65504,3766.5,3765.6,2.65561]
[1717099177230,2.65504,3766.5,3765.7,1.32213922]
[1717099177496,2.65474,3766.9,3765.7,1.32213922]
[1717099177793,2.65474,3766.9,3765.8,2.65545]
[1717099177921,2.65474,3766.9,3765.9,1.71989814]
[1717099179878,2.65493,3766.6,3765.9,1.32213922]
[1717099180437,2.65486,3766.7,3765.8,2.65545]
[1717099180634,2.65486,3766.7,3765.8,3.97758922]
[1717099183743,2.65486,3766.7,3765.8,4.00418922]
[1717099184195,2.65486,3766.7,3765.8,4.40460814]
[1717099186796,2.6546,3767.1,3766.0,2.65531]
[1717099187090,2.6546,3767.1,3766.2,2.65519]
[1717099187675,2.6546,3767.1,3766.1,4.2346]
[1717099187877,2.6546,3767.1,3765.8,2.68203]
[1717099188060,2.6546,3767.1,3765.9,1.32213922]
[1717099188260,2.6546,3767.1,3766.0,2.65533]
[1717099188489,2.6546,3767.1,3766.1,0.40040692]
[1717099189763,2.6546,3767.1,3766.0,2.65533]
[1717099190661,2.65479,3766.8,3766.0,2.65533]
[1717099191696,2.6552,3766.2,3765.8,0.0266]
[1717099194376,2.6554,3765.9,3765.8,0.0266]
[1717099195520,2.92094,3765.9,3765.8,0.0266]
[1717099195874,6.47094,3765.9,3765.8,0.0266]
[1717099197823,9.12634,3765.9,3765.8,0.0266]
[1717099198027,10.44847922,3765.9,3765.8,0.0266]
[1717099198194,13.21047922,3765.9,3765.8,0.0266]
[1717099198391,2.65638,3764.6,3763.9,7.3]
[1717099198610,2.65638,3764.6,3763.6,2.65699]
[1717099198824,2.65656,3764.3,3763.5,3.9324]
[1717099199037,1.933,3765.2,3762.9,3.9324]
[1717099199038,4.2109,3764.2,3762.9,3.9324]
[1717099199332,4.2109,3764.2,3762.9,5.25453922]
[1717099199333,0.61439,3764.1,3762.9,5.25453922]
[1717099199523,3.0,3764.7,3763.0,1.32213922]
[1717099199524,2.65679,3764.0,3763.0,1.32213922]
[1717099200076,2.65679,3764.0,3763.1,1.32213922]
[1717099200308,2.65643,3764.5,3763.3,2.6572]
[1717099200638,2.65643,3764.5,3763.4,1.32213922]
[1717099200917,2.65643,3764.5,3763.5,0.39793392]
[1717099201076,2.65643,3764.5,3763.6,1.32213922]
[1717099201415,7.2109,3765.1,3762.9,6.58991]
[1717099201416,2.65672,3764.1,3762.9,6.58991]
[1717099201593,2.65672,3764.1,3763.0,1.32213922]
[1717099202214,4.245,3764.2,3762.5,6.8528]
[1717099202422,4.245,3764.2,3762.1,7.3]
[1717099202423,2.65757,3762.9,3762.1,7.3]
[1717099202582,2.65757,3762.9,3762.0,4.26407543]
[1717099202918,5.48993922,3764.1,3762.1,1.32213922]
[1717099202919,1.1678,3764.1,3762.1,1.32213922]
[1717099203122,1.1678,3764.1,3762.3,1.933]
[1717099203123,4.1678,3764.1,3762.3,1.933]
[1717099203428,4.1678,3764.1,3762.4,0.32551392]
[1717099203429,0.84128,3764.0,3762.4,0.32551392]
[1717099203578,0.84128,3764.0,3762.1,1.32213922]
[1717099203779,0.84128,3764.0,3762.1,1.32393922]
[1717099203980,2.65697,3763.7,3762.5,2.65775]
[1717099204215,2.65723,3763.4,3762.5,2.65775]
[1717099204392,0.265723,3763.3,3762.1,2.66557]
[1717099204607,2.65789,3762.4,3762.1,0.0075]
[1717099206605,2.65801,3762.2,3762.1,0.0075]
[1717099206918,6.20801,3762.2,3762.1,0.0075]
[1717099207230,12.23543414,3762.2,3762.1,0.0075]
[1717099207720,8.15129492,3762.2,3762.1,0.0075]
[1717099208034,8.14101,3762.2,3762.1,0.0075]
[1717099208240,9.46314922,3762.2,3762.1,0.0075]
[1717099208439,6.20801,3762.2,3762.1,0.0075]
[1717099212750,7.53014922,3762.2,3762.1,0.0075]
[1717099213048,10.62822056,3762.2,3762.1,0.0075]
[1717099213208,11.88434262,3762.2,3762.1,0.0075]
[1717099213908,11.54827128,3762.2,3762.1,0.0075]
[1717099214769,11.54827128,3762.2,3759.8,12.21]
[1717099214770,1.5035,3758.4,3756.2,1.92628785]
[1717099214948,1.5035,3758.4,3753.0,4.1069454]
[1717099214949,1.5035,3757.7,3756.5,0.54945411]
[1717099215112,1.56384241,3757.6,3756.5,0.54945411]
[1717099215305,1.56384241,3757.6,3755.4,5.8933]
[1717099215306,0.30673424,3757.5,3755.4,5.8933]
[1717099215511,0.85673424,3757.5,3755.4,5.8933]
[1717099215769,0.55,3757.5,3755.4,5.8933]
[1717099216050,2.66128,3757.6,3755.4,3.9603]
[1717099216514,2.66128,3757.6,3755.5,35.0]
[1717099216708,2.46608,3757.6,3755.7,1.933]
[1717099216912,2.46608,3757.6,3755.4,3.9603]
[1717099216913,0.55,3758.2,3756.1,1.933]
[1717099217232,0.55,3758.2,3755.7,1.933]
[1717099217233,2.66101,3758.0,3755.7,1.933]
[1717099217556,2.66101,3758.0,3756.1,1.933]
[1717099217557,0.55,3757.9,3756.1,1.933]
[1717099217734,4.171101,3757.9,3756.2,0.1933]
[1717099217906,2.66116,3757.8,3756.2,0.1933]
[1717099218510,2.66116,3757.8,3755.8,35.0]
[1717099219501,2.66116,3757.8,3755.9,2.66241]
[1717099219656,2.66116,3757.8,3755.9,5.24841]
[1717099220023,2.66116,3757.8,3756.4,3.9852]
[1717099220368,21.63660704,3758.2,3757.3,2.66144]
[1717099220531,21.63660704,3758.2,3757.5,2.66131]
[1717099220928,21.63660704,3758.2,3757.9,35.0]
[1717099222024,21.63660704,3758.2,3757.4,0.266144]
[1717099222232,21.63660704,3758.2,3756.9,2.66173]
[1717099222440,21.63660704,3758.2,3757.0,35.0]
[1717099224314,21.63660704,3758.2,3757.1,2.66157]
[1717099224511,21.63660704,3758.2,3757.6,2.66125]
[1717099224960,2.66011,3759.3,3757.7,35.0]
[1717099225126,2.66029,3759.0,3757.8,2.64560763]
[1717099225462,2.66029,3759.0,3757.0,2.66165]
[1717099225810,2.66029,3759.0,3757.4,2.66137]
[1717099226447,3.07547125,3759.5,3757.9,2.66103]
[1717099226618,2.66007,3759.3,3758.0,0.266103]
[1717099226817,2.66007,3759.3,3758.1,35.0]
[1717099229717,0.41553125,3759.5,3758.2,2.66084]
[1717099230469,0.41553125,3759.5,3758.3,35.0]
[1717099231367,0.41553125,3759.5,3758.4,2.6607]
[1717099231529,0.41553125,3759.5,3758.5,2.64560763]
[1717099231724,0.41553125,3759.5,3758.4,2.6607]
[1717099231922,0.41553125,3759.5,3758.7,2.66044]
[1717099232123,0.41553125,3759.5,3758.9,2.66033]
[1717099232863,0.41553125,3759.5,3759.0,35.0]
[1717099233181,0.41553125,3759.5,3759.1,2.71339058]
[1717099233390,0.41553125,3759.5,3759.3,2.66006]
[1717099233861,0.41553125,3759.5,3759.4,35.0]
[1717099236826,0.41553125,3759.5,3759.3,2.66006]
[1717099237566,0.41553125,3759.5,3759.3,37.66006]
[1717099238780,0.41553125,3759.5,3759.4,1.32213922]
[1717099242878,0.41553125,3759.5,3758.9,2.66034]
[1717099243063,0.41553125,3759.5,3758.9,3.98247922]
[1717099244697,0.72306037,3759.5,3758.9,3.98247922]
[1717099245253,0.72306037,3759.5,3758.5,2.66062]
[1717099245456,0.72306037,3759.5,3758.6,1.32213922]
[1717099246168,5.1158,3759.4,3758.6,1.32213922]
[1717099246374,2.66009,3759.3,3758.1,37.66091]
[1717099246576,2.66009,3759.3,3758.2,1.32213922]
[1717099248768,2.66033,3759.0,3757.7,2.66118]
[1717099248973,2.66033,3759.0,3757.8,1.32213922]
[1717099249175,2.926363,3759.0,3758.0,2.66098]
[1717099249372,2.926363,3759.0,3758.1,1.32213922]
[1717099249625,2.876363,3759.0,3758.1,1.32213922]
[1717099249804,2.66054,3758.7,3757.6,2.66125]
[1717099249974,2.66054,3758.7,3757.6,1.32213922]
[1717099250175,2.66073,3758.4,3757.6,1.32213922]
[1717099250924,2.66073,3758.4,3757.2,9.96153]
[1717099251092,0.321054,3758.6,3757.2,9.96153]
[1717099251093,2.66098,3758.1,3757.2,1.32213922]
[1717099252395,7.86388,3758.1,3757.2,1.32213922]
[1717099253345,2.66117,3757.8,3757.2,1.32213922]
[1717099253496,2.66117,3757.8,3756.8,2.66182]
[1717099253697,2.66117,3757.8,3756.9,1.32213922]
[1717099253922,3.447577,3757.8,3756.9,1.32213922]
[1717099254784,2.66137,3757.5,3756.4,2.66208]
[1717099254990,2.66137,3757.5,3756.5,1.32213922]
[1717099257279,3.0,3757.9,3756.9,2.66172]
[1717099257280,2.66108,3757.9,3756.9,2.66172]
[1717099257400,2.66108,3757.9,3757.0,1.32213922]
[1717099258032,2.6608,3758.3,3757.1,2.66158]
[1717099258194,2.6608,3758.3,3757.2,1.32213922]
[1717099258389,2.6608,3758.3,3757.3,2.66146]
[1717099258706,2.6608,3758.3,3757.4,1.32213922]
[1717099260028,7.8113,3758.7,3757.6,2.66125]
[1717099260029,7.47183,3758.7,3757.6,2.66125]
[1717099260242,7.47183,3758.7,3757.8,2.66109]
[1717099260528,7.47183,3758.7,3757.9,1.32213922]
[1717099261728,2.66016,3759.2,3757.9,1.32213922]
[1717099262291,7.57435,3759.7,3758.6,2.66052]
[1717099262492,7.57435,3759.7,3758.8,2.66036]
[1717099262493,3.1513,3759.7,3758.8,2.66036]
[1717099262744,3.1513,3759.7,3758.8,3.98249922]
[1717099262934,5.08158215,3760.3,3759.1,2.66018]
[1717099262935,2.65954,3760.1,3759.1,2.66018]
[1717099263127,2.65954,3760.1,3759.2,1.32213922]
[1717099263294,2.65954,3760.1,3759.3,2.66001]
[1717099263494,5.08158215,3760.3,3759.5,2.65992]
[1717099264225,2.65969,3759.9,3758.8,35.0]
[1717099264430,0.265969,3759.8,3758.8,1.32213922]
[1717099266058,2.65969,3759.9,3758.9,2.6603]
[1717099266764,8.08158215,3760.3,3759.3,2.66004]
[1717099266964,3.0,3760.2,3759.3,2.66004]
[1717099269192,5.08158215,3760.3,3759.3,2.66004]
[1717099270323,0.16708215,3760.3,3759.5,2.65989]
[1717099270525,0.16708215,3760.3,3759.8,2.65968]
[1717099271436,1.07048965,3760.8,3760.0,2.65956]
[1717099271705,1.07048965,3761.2,3760.3,2.6593]
[1717099271877,1.07048965,3761.3,3760.3,2.6593]
[1717099272074,1.33761815,3761.5,3760.4,1.32213922]
[1717099272075,2.65858,3761.4,3760.4,1.32213922]
[1717099272276,0.85013697,3761.3,3760.4,1.32213922]
[1717099272492,0.85013697,3761.3,3760.5,2.6592]
[1717099272701,0.85013697,3761.3,3760.5,3.98133922]
[1717099273684,0.85013697,3761.3,3760.7,2.65902]
[1717099273893,4.07048965,3761.8,3760.7,2.65902]
[1717099274068,3.0,3761.8,3760.7,2.65902]
[1717099274666,3.89915319,3761.9,3760.9,2.65892]
[1717099274871,3.89915319,3761.9,3760.9,3.98105922]
[1717099274872,2.82866354,3761.9,3760.9,3.98105922]
[1717099275090,0.50875874,3761.8,3760.9,3.98105922]
[1717099279872,0.50875874,3761.8,3760.5,2.65918]
[1717099279873,2.65864,3761.4,3760.5,2.65918]
[1717099280434,2.65864,3761.4,3759.8,7.3]
[1717099280435,2.65884,3761.1,3760.1,2.65946]
[1717099280636,2.65897,3760.9,3760.1,3.98159922]
[1717099281489,2.65897,3760.9,3760.1,1.32213922]
[1717099282955,2.65917,3760.6,3759.7,2.65974]
[1717099283245,2.65917,3760.6,3759.3,2.66002]
[1717099283442,2.65929,3760.4,3759.4,1.32213922]
[1717099284148,2.65929,3760.4,3759.5,2.65991]
[1717099284332,2.65929,3760.4,3759.5,3.98204922]
[1717099288342,2.65952,3760.1,3759.1,2.66016]
[1717099288547,2.65952,3760.1,3759.2,1.32213922]
[1717099288779,0.265952,3760.0,3759.2,1.32213922]
[1717099288963,2.65952,3760.1,3759.2,1.32213922]
[1717099290251,2.65926,3760.5,3759.4,2.65999]
[1717099290563,2.65926,3760.5,3759.5,1.32213922]
[1717099294407,2.65926,3760.5,3759.6,2.65984]
[1717099295709,3.0,3760.9,3759.0,35.0]
[1717099295912,2.586,3760.6,3759.0,1.32213922]
[1717099296067,3.0,3760.5,3759.0,1.32213922]
[1717099296288,0.55,3760.4,3759.0,1.32213922]
[1717099296489,2.65987,3759.6,3758.8,2.66036]
[1717099296713,2.65987,3759.6,3758.8,3.98249922]
[1717099296913,0.265987,3759.5,3758.8,3.98249922]
[1717099299209,2.66,3759.4,3758.4,2.66066]
[1717099299409,2.66,3759.4,3758.5,1.32213922]
[1717099300300,2.66025,3759.1,3758.0,2.66093]
[1717099300507,2.66025,3759.1,3758.1,1.32213922]
[1717099301453,2.66044,3758.8,3758.1,1.32213922]
[1717099301637,2.66058,3758.6,3757.6,2.66125]
[1717099301839,2.66058,3758.6,3757.6,3.98338922]
[1717099303036,2.6608,3758.3,3757.2,2.6615]
[1717099303224,2.6608,3758.3,3757.4,2.66138]
[1717099303527,2.6608,3758.3,3757.4,3.98351922]
[1717099307429,2.92688,3758.3,3757.4,3.98351922]
[1717099308255,2.926554,3758.7,3757.6,2.66124]
[1717099308419,3.0,3758.6,3757.8,2.66108]
[1717099308616,5.66026,3759.1,3758.0,2.66097]
[1717099309830,5.66026,3759.1,3758.2,2.66081]
[1717099310156,5.66026,3759.1,3758.3,1.32213922]
[1717099310341,5.66026,3759.1,3758.4,2.66069]
[1717099310539,2.65998,3759.5,3758.5,1.32213922]
[1717099310745,2.65998,3759.5,3758.6,2.66056]
[1717099311053,1.07048965,3759.7,3758.8,2.6604]
[1717099311364,2.65982,3759.7,3758.8,3.98253922]
[1717099311566,3.1676073,3759.7,3758.8,3.98253922]
[1717099312120,3.0,3759.6,3758.8,3.98253922]
[1717099312536,2.65992,3759.5,3758.8,3.98253922]
[1717099313068,2.66015,3759.2,3758.4,2.66065]
[1717099313236,2.926165,3759.2,3758.5,1.32213922]
[1717099316561,2.926165,3759.2,3758.4,2.66065]
[1717099316767,2.926165,3759.2,3758.4,1.32213922]
[1717099320961,2.66035,3758.9,3757.9,2.66099]
[1717099321271,5.384715,3759.2,3757.5,2.66128]
[1717099321474,2.585,3759.0,3757.6,1.32213922]
[1717099321622,2.66093,3758.1,3757.2,2.66155]
[1717099321828,2.66093,3758.1,3757.3,1.32213922]
[1717099322753,2.66108,3757.9,3756.8,7.85717]
[1717099322938,2.66108,3757.9,3756.9,1.32213922]
[1717099324239,5.418293,3758.0,3756.1,12.408]
[1717099324240,2.66127,3757.6,3756.4,2.66206]
[1717099324474,2.66127,3757.6,3756.5,1.32213922]
[1717099325929,2.6615,3757.3,3756.5,1.32213922]
[1717099326372,2.66171,3757.0,3756.0,2.66235]
[1717099326678,2.66171,3757.0,3756.1,1.32213922]
[1717099328179,0.26615,3757.3,3755.5,2.66275]
[1717099328180,2.66202,3756.6,3755.5,2.66275]
[1717099328343,2.66202,3756.6,3755.6,1.32213922]
[1717099328545,3.667472,3756.6,3755.6,1.32213922]
[1717099328864,2.66234,3756.1,3755.4,0.005]
[1717099329070,2.66234,3756.1,3755.4,1.32713922]
[1717099331845,2.66234,3756.1,3755.4,0.005]
[1717099332690,2.66264,3755.7,3755.4,0.005]
[1717099333551,3.0,3755.6,3755.4,0.005]
[1717099333869,2.66276,3755.5,3755.4,0.005]
[1717099337095,7.60276,3755.5,3755.4,0.005]
[1717099337306,16.25384303,3755.5,3755.4,0.005]
[1717099337484,18.55337949,3755.5,3755.4,0.005]
[1717099337647,16.06726346,3755.5,3755.4,0.005]
[1717099337850,5.66276,3755.5,3755.4,0.005]
[1717099339469,2.6625,3755.9,3755.4,0.005]
[1717099339697,0.5945452,3756.3,3755.4,1.32713922]
[1717099339698,2.66222,3756.3,3755.4,1.32713922]
[1717099339849,2.66222,3756.3,3755.5,1.32213922]
[1717099341813,2.66222,3756.3,3755.4,0.005]
[1717099341953,2.66248,3755.9,3755.4,0.005]
[1717099342155,7.49318,3755.9,3755.4,0.005]
[1717099342846,2.66274,3755.6,3755.4,0.005]
[1717099344905,3.55,3755.5,3755.4,0.005]
[1717099347312,10.22313922,3755.5,3755.4,0.005]
[1717099347635,11.77798214,3755.5,3755.4,0.005]
[1717099348216,11.77798214,3755.5,3754.3,0.123461]
[1717099348217,2.66301,3755.2,3754.3,0.123461]
[1717099348427,2.66354,3754.4,3754.3,0.123461]
[1717099348566,6.74933627,3754.4,3754.3,0.123461]
[1717099348765,7.29933627,3754.4,3754.3,0.123461]
[1717099349212,19.21231549,3754.4,3754.3,0.123461]
[1717099350109,2.66502,3752.4,3750.7,0.77891407]
[1717099350313,0.266502,3752.3,3750.9,2.66597]
[1717099350496,2.66502,3752.4,3750.9,2.66597]
[1717099350669,0.65842695,3752.8,3750.7,0.77891407]
[1717099350670,2.66574,3751.3,3750.7,0.77891407]
[1717099350869,4.63413922,3752.2,3750.7,0.77891407]
[1717099350870,7.83139,3750.8,3750.7,0.77891407]
[1717099351114,7.83139,3750.8,3750.6,0.123461]
[1717099351115,11.75459763,3750.8,3750.6,0.123461]
[1717099351437,3.55,3750.7,3750.6,0.123461]
[1717099351635,2.4994,3750.6,3747.4,0.006]
[1717099351838,2.66796,3748.2,3747.4,0.006]
[1717099352112,0.123461,3749.9,3747.4,0.006]
[1717099352113,2.589,3748.4,3747.4,0.006]
[1717099352320,2.8479,3748.4,3747.4,0.006]
[1717099352470,6.21788,3748.3,3747.4,0.006]
[1717099352699,2.66811,3748.0,3745.5,0.0998454]
[1717099352876,2.66843,3747.6,3745.5,0.0998454]
[1717099353106,0.68355085,3747.9,3745.5,0.0998454]
[1717099353107,1.32213922,3747.0,3745.5,0.0998454]
[1717099353417,2.66971,3745.8,3745.5,0.0998454]
[1717099353997,2.66979,3745.6,3743.0,0.26673705]
[1717099354180,5.25904,3745.3,3742.5,2.67199]
[1717099354397,5.25904,3745.3,3742.0,6.77589487]
[1717099354398,3.55,3746.7,3742.0,6.77589487]
[1717099354399,1.32213922,3744.1,3742.0,6.77589487]
[1717099354712,1.32213922,3744.1,3742.0,0.00160342]
[1717099354713,2.67097,3744.0,3742.0,0.00160342]
[1717099354869,2.67108,3743.8,3742.0,0.00160342]
[1717099355266,2.6705,3744.7,3742.3,7.79098]
[1717099355421,5.1653,3746.5,3743.1,2.67153]
[1717099355422,2.66983,3745.6,3743.1,2.67153]
[1717099356101,7.83452,3746.5,3743.8,2.67107]
[1717099356287,7.83452,3746.5,3744.0,2.67093]
[1717099356288,1.15779095,3746.4,3744.0,2.67093]
[1717099356490,1.15779095,3746.4,3743.9,0.292107]
[1717099356491,0.55,3746.4,3744.2,2.67074]
[1717099356689,0.55,3746.4,3744.4,2.67065]
[1717099356905,0.266837,3747.5,3744.6,2.67048]
[1717099356906,1.32213922,3746.3,3744.6,2.67048]
[1717099357317,2.6691,3746.6,3744.6,2.67048]
[1717099357529,2.6691,3746.6,3744.8,2.67035]
[1717099357683,2.6691,3746.6,3744.9,2.64560763]
[1717099358106,2.6691,3746.6,3744.8,2.67035]
[1717099358333,2.66859,3747.3,3745.1,2.67011]
[1717099358629,1.068639,3747.1,3745.1,2.67011]
[1717099358779,1.068639,3747.1,3745.3,2.66998]
[1717099359008,1.068639,3747.1,3743.9,3.475107]
[1717099359013,2.67039,3744.8,3742.9,2.67165]
[1717099359643,2.67039,3744.8,3742.2,2.7590911]
[1717099359877,2.67039,3744.8,3742.3,35.0]
[1717099360210,5.1653,3745.3,3742.3,35.0]
[1717099360211,2.67064,3744.5,3742.3,35.0]
[1717099360465,3.55,3744.4,3742.3,35.0]
[1717099361412,2.67009,3745.2,3742.8,2.67173]
[1717099361623,2.937099,3745.2,3742.9,5.1189]
[1717099361811,2.67064,3744.5,3742.3,35.0]
[1717099362008,0.267009,3745.2,3742.3,35.0]
[1717099362009,0.41839307,3744.9,3742.6,2.67188]
[1717099362309,0.41839307,3744.9,3743.3,2.6714]
[1717099362769,0.41839307,3744.9,3743.8,2.67106]
[1717099362941,0.29299752,3746.1,3743.0,2.6716]
[1717099363160,2.67084,3744.2,3742.2,2.7590611]
[1717099363721,2.67084,3744.2,3742.3,35.0]
[1717099364159,0.41832926,3745.7,3742.8,2.67174]
[1717099364160,2.67032,3744.9,3742.8,2.67174]
[1717099364479,3.0,3744.8,3743.6,1.57213922]
[1717099364615,0.55,3744.7,3743.6,0.25]
[1717099365059,2.67032,3744.9,3743.6,1.57213922]
[1717099365221,0.41832926,3745.7,3743.6,1.57213922]
[1717099365222,3.08808926,3745.7,3743.7,1.32213922]
[1717099365423,2.67002,3745.3,3743.6,0.67434792]
[1717099365612,2.67002,3745.3,3743.6,1.99648714]
[1717099365822,2.67002,3745.3,3743.7,1.32213922]
[1717099366259,0.41832926,3745.7,3743.8,2.67104]
[1717099366412,0.41832926,3745.7,3744.1,2.67085]
[1717099366618,0.41832926,3745.7,3744.6,2.67047]
[1717099366814,2.66907,3746.7,3744.9,2.67028]
[1717099367062,2.66907,3746.7,3743.8,7.3]
[1717099367063,2.66989,3745.5,3743.8,7.3]
[1717099367322,0.27493758,3746.6,3743.6,0.25]
[1717099367323,2.67034,3744.9,3743.6,0.25]
[1717099368233,2.67046,3744.7,3743.6,0.25]
[1717099368933,2.67001,3745.3,3743.7,1.32213922]
[1717099369135,3.41834,3747.7,3743.6,2.92117]
[1717099369136,2.66957,3746.0,3744.1,1.32213922]
[1717099369470,2.66975,3745.7,3744.4,1.32213922]
[1717099369633,2.66932,3746.3,3744.8,1.32213922]
[1717099369834,2.66932,3746.3,3745.0,1.32213922]
[1717099370049,7.44753,3748.1,3745.0,1.32213922]
[1717099370050,2.66889,3746.9,3745.0,1.32213922]
[1717099370365,1.068613,3747.5,3745.0,1.3213364]
[1717099370565,1.068613,3747.5,3745.1,35.39916664]
[1717099370717,1.068613,3747.5,3745.2,1.32213922]
[1717099371164,2.66877,3747.1,3745.4,1.32213922]
[1717099371376,2.66877,3747.1,3745.6,1.32213922]
[1717099372128,2.935647,3747.1,3745.6,1.32213922]
[1717099372360,2.935647,3747.1,3745.1,38.06929664]